[Event "Titled Tuesday Blitz November 15 Late 2022"]
[White "Shapiro, Daniel"]
[Black "Miszler, Levente"]
[WhiteFideId "2001780"]
[BlackFideId "763276"]
[WhiteElo "2319"]
[BlackElo "2176"]
[Result "0-1"]
[Round "04"]
[TimeControl "180+1"]
[Date "2022.11.16"]
[WhiteClock "0:00:13"]
[BlackClock "0:01:33"]

1. d4 {[%clk 0:03:00]}  Nf6 {[%clk 0:02:58]} 2. c4 {[%clk 0:03:00]}  e6 {[%clk 0:02:56]} 3. g3 {[%clk 0:03:00]}  d5 {[%clk 0:02:53]} 4. Nf3 {[%clk 0:02:59]}  Be7 {[%clk 0:02:53]} 5. Bg2 {[%clk 0:02:59]}  O-O {[%clk 0:02:54]} 6. O-O {[%clk 0:02:59]}  dxc4 {[%clk 0:02:55]} 7. Ne5 {[%clk 0:02:59]}  Nc6 {[%clk 0:02:53]} 8. Bxc6 {[%clk 0:02:59]}  bxc6 {[%clk 0:02:54]} 9. Nxc6 {[%clk 0:02:59]}  Qd7 {[%clk 0:02:54]} 10. Nxe7+ {[%clk 0:03:00]}  Qxe7 {[%clk 0:02:55]} 11. Qa4 {[%clk 0:02:59]}  e5 {[%clk 0:02:54]} 12. dxe5 {[%clk 0:02:59]}  Qxe5 {[%clk 0:02:55]} 13. Qxc4 {[%clk 0:02:59]}  Be6 {[%clk 0:02:56]} 14. Qd3 {[%clk 0:02:39]}  Rad8 {[%clk 0:02:53]} 15. Qe3 {[%clk 0:02:37]}  Qh5 {[%clk 0:02:53]} 16. f3 {[%clk 0:02:32]}  Rfe8 {[%clk 0:02:51]} 17. Qf2 {[%clk 0:01:43]}  Bc4 {[%clk 0:02:51]} 18. Nc3 {[%clk 0:01:38]}  Nd5 {[%clk 0:02:47]} 19. Re1 {[%clk 0:00:53]}  Qh3 {[%clk 0:02:11]} 20. a3 {[%clk 0:00:33]}  Nxc3 {[%clk 0:02:05]} 21. bxc3 {[%clk 0:00:33]}  Bxe2 {[%clk 0:02:06]} 22. Be3 {[%clk 0:00:30]}  Bc4 {[%clk 0:01:57]} 23. Bxa7 {[%clk 0:00:28]}  h6 {[%clk 0:01:57]} 24. Bd4 {[%clk 0:00:25]}  Bd5 {[%clk 0:01:48]} 25. a4 {[%clk 0:00:23]}  Qh5 {[%clk 0:01:48]} 26. Kg2 {[%clk 0:00:21]}  Rxe1 {[%clk 0:01:43]} 27. Rxe1 {[%clk 0:00:20]}  Rd6 {[%clk 0:01:44]} 28. Re5 {[%clk 0:00:19]}  Qg6 {[%clk 0:01:40]} 29. Bc5 {[%clk 0:00:15]}  Rd8 {[%clk 0:01:37]} 30. Qd2 {[%clk 0:00:13]}  Bxf3+ {[%clk 0:01:33]} 0-1


[Site "https://www.chess.com"]

[Event "Titled Tuesday Blitz November 15 Late 2022"]
[White "Shuvalova, Polina"]
[Black "Storey, Charles H"]
[WhiteFideId "24171760"]
[BlackFideId "406686"]
[WhiteElo "2342"]
[BlackElo "2252"]
[Result "1-0"]
[Round "04"]
[TimeControl "180+1"]
[Date "2022.11.16"]
[WhiteClock "0:00:42"]
[BlackClock "0:00:11"]

1. d4 {[%clk 0:02:55]}  g6 {[%clk 0:02:56]} 2. e4 {[%clk 0:02:54]}  Bg7 {[%clk 0:02:57]} 3. Nc3 {[%clk 0:02:54]}  c5 {[%clk 0:02:57]} 4. Nf3 {[%clk 0:02:49]}  Qa5 {[%clk 0:02:56]} 5. Be3 {[%clk 0:02:41]}  Nf6 {[%clk 0:02:55]} 6. Bd3 {[%clk 0:02:13]}  c4 {[%clk 0:02:55]} 7. Bxc4 {[%clk 0:02:09]}  Nxe4 {[%clk 0:02:55]} 8. O-O {[%clk 0:02:07]}  Nxc3 {[%clk 0:02:53]} 9. bxc3 {[%clk 0:02:08]}  Qxc3 {[%clk 0:02:50]} 10. Bb3 {[%clk 0:02:02]}  O-O {[%clk 0:02:47]} 11. Re1 {[%clk 0:02:01]}  e6 {[%clk 0:02:39]} 12. Bd2 {[%clk 0:01:59]}  Qc7 {[%clk 0:02:37]} 13. c4 {[%clk 0:01:51]}  Nc6 {[%clk 0:02:36]} 14. d5 {[%clk 0:01:49]}  Na5 {[%clk 0:02:23]} 15. Rc1 {[%clk 0:01:41]}  Nxb3 {[%clk 0:02:22]} 16. axb3 {[%clk 0:01:40]}  b6 {[%clk 0:02:04]} 17. Bc3 {[%clk 0:01:37]}  Bxc3 {[%clk 0:02:02]} 18. Rxc3 {[%clk 0:01:37]}  Bb7 {[%clk 0:01:58]} 19. Ng5 {[%clk 0:01:17]}  exd5 {[%clk 0:01:33]} 20. Rh3 {[%clk 0:01:14]}  h5 {[%clk 0:00:51]} 21. cxd5 {[%clk 0:01:06]}  Rae8 {[%clk 0:00:43]} 22. Ne4 {[%clk 0:01:03]}  f5 {[%clk 0:00:30]} 23. Nf6+ {[%clk 0:00:56]}  Rxf6 {[%clk 0:00:24]} 24. Rxe8+ {[%clk 0:00:56]}  Kf7 {[%clk 0:00:24]} 25. Rhe3 {[%clk 0:00:55]}  Qd6 {[%clk 0:00:19]} 26. h3 {[%clk 0:00:49]}  Kg7 {[%clk 0:00:15]} 27. R3e7+ {[%clk 0:00:44]}  Rf7 {[%clk 0:00:14]} 28. Qd4+ {[%clk 0:00:44]}  Qf6 {[%clk 0:00:11]} 29. Rxf7+ {[%clk 0:00:41]}  Kxf7 {[%clk 0:00:11]} 30. Rf8+ {[%clk 0:00:42]} 1-0


[Site "https://www.chess.com"]

[Event "Titled Tuesday Blitz November 15 Late 2022"]
[White "Souleidis, Georgios"]
[Black "Onslow, Alfie"]
[WhiteFideId "4206827"]
[BlackFideId "436976"]
[WhiteElo "2401"]
[BlackElo "2015"]
[Result "0-1"]
[Round "04"]
[TimeControl "180+1"]
[Date "2022.11.16"]
[WhiteClock "0:00:11"]
[BlackClock "0:00:20"]

1. e4 {[%clk 0:03:00]}  c5 {[%clk 0:02:59]} 2. Be2 {[%clk 0:03:00]}  Nc6 {[%clk 0:02:59]} 3. d3 {[%clk 0:03:01]}  g6 {[%clk 0:02:59]} 4. f4 {[%clk 0:03:01]}  Bg7 {[%clk 0:02:59]} 5. Nf3 {[%clk 0:03:02]}  d6 {[%clk 0:02:58]} 6. O-O {[%clk 0:03:03]}  e5 {[%clk 0:02:58]} 7. fxe5 {[%clk 0:03:02]}  Nxe5 {[%clk 0:02:54]} 8. c3 {[%clk 0:02:57]}  Ne7 {[%clk 0:02:45]} 9. Nxe5 {[%clk 0:02:56]}  dxe5 {[%clk 0:02:43]} 10. Be3 {[%clk 0:02:49]}  Qd6 {[%clk 0:02:39]} 11. Nd2 {[%clk 0:02:30]}  O-O {[%clk 0:02:38]} 12. Nc4 {[%clk 0:02:29]}  Qc7 {[%clk 0:02:37]} 13. a4 {[%clk 0:02:29]}  Be6 {[%clk 0:02:35]} 14. Qe1 {[%clk 0:02:14]}  b6 {[%clk 0:02:26]} 15. Qh4 {[%clk 0:02:11]}  Nc6 {[%clk 0:02:22]} 16. Bg4 {[%clk 0:01:57]}  Bxc4 {[%clk 0:02:16]} 17. dxc4 {[%clk 0:01:57]}  Na5 {[%clk 0:02:14]} 18. Be2 {[%clk 0:01:53]}  Rad8 {[%clk 0:02:03]} 19. Qg3 {[%clk 0:01:48]}  Rd7 {[%clk 0:01:52]} 20. Rac1 {[%clk 0:01:47]}  Rfd8 {[%clk 0:01:49]} 21. h4 {[%clk 0:01:38]}  Qc6 {[%clk 0:01:42]} 22. Bg4 {[%clk 0:00:31]}  Rd3 {[%clk 0:01:38]} 23. Qf3 {[%clk 0:00:30]}  f6 {[%clk 0:01:26]} 24. Qh3 {[%clk 0:00:27]}  Qxe4 {[%clk 0:01:14]} 25. Be6+ {[%clk 0:00:26]}  Kh8 {[%clk 0:01:12]} 26. Rf3 {[%clk 0:00:26]}  Nxc4 {[%clk 0:00:50]} 27. Re1 {[%clk 0:00:25]}  Nxe3 {[%clk 0:00:36]} 28. h5 {[%clk 0:00:25]}  Rd1 {[%clk 0:00:28]} 29. Rxd1 {[%clk 0:00:22]}  Rxd1+ {[%clk 0:00:29]} 30. Kh2 {[%clk 0:00:23]}  Nf1+ {[%clk 0:00:21]} 31. Rxf1 {[%clk 0:00:14]}  Rxf1 {[%clk 0:00:22]} 32. Bb3 {[%clk 0:00:11]}  Qf4+ {[%clk 0:00:20]} 0-1


[Site "https://www.chess.com"]

[Event "Titled Tuesday Blitz November 15 Late 2022"]
[White "Svane, Frederik"]
[Black "Gubajdullin, Alexei"]
[WhiteFideId "12923044"]
[BlackFideId "4141202"]
[WhiteElo "2466"]
[BlackElo "2230"]
[Result "1/2-1/2"]
[Round "04"]
[TimeControl "180+1"]
[Date "2022.11.16"]
[WhiteClock "0:00:03"]
[BlackClock "0:00:06"]

1. c4 {[%clk 0:03:00]}  Nf6 {[%clk 0:02:57]} 2. d3 {[%clk 0:03:00]}  g6 {[%clk 0:02:57]} 3. Nc3 {[%clk 0:02:59]}  Bg7 {[%clk 0:02:57]} 4. g3 {[%clk 0:03:00]}  O-O {[%clk 0:02:58]} 5. Bg2 {[%clk 0:03:00]}  d6 {[%clk 0:02:58]} 6. Rb1 {[%clk 0:02:58]}  Nc6 {[%clk 0:02:59]} 7. Nf3 {[%clk 0:02:54]}  Nh5 {[%clk 0:02:56]} 8. Bd2 {[%clk 0:02:48]}  f5 {[%clk 0:02:53]} 9. b4 {[%clk 0:02:48]}  f4 {[%clk 0:02:44]} 10. b5 {[%clk 0:02:45]}  Nd4 {[%clk 0:02:42]} 11. e3 {[%clk 0:02:26]}  fxe3 {[%clk 0:02:36]} 12. fxe3 {[%clk 0:02:27]}  Bh3 {[%clk 0:02:36]} 13. O-O {[%clk 0:02:23]}  Nxf3+ {[%clk 0:02:32]} 14. Rxf3 {[%clk 0:02:22]}  Qd7 {[%clk 0:02:26]} 15. Bxh3 {[%clk 0:01:46]}  Qxh3 {[%clk 0:02:24]} 16. Qe2 {[%clk 0:01:47]}  Rxf3 {[%clk 0:02:14]} 17. Qxf3 {[%clk 0:01:47]}  Rf8 {[%clk 0:02:12]} 18. Qg2 {[%clk 0:01:11]}  Qg4 {[%clk 0:02:04]} 19. Rf1 {[%clk 0:01:08]}  Rxf1+ {[%clk 0:01:58]} 20. Qxf1 {[%clk 0:01:08]}  Bxc3 {[%clk 0:01:58]} 21. Bxc3 {[%clk 0:01:09]}  e5 {[%clk 0:01:50]} 22. Kg2 {[%clk 0:01:04]}  Ng7 {[%clk 0:01:14]} 23. h3 {[%clk 0:01:01]}  Qc8 {[%clk 0:01:01]} 24. g4 {[%clk 0:00:55]}  Ne6 {[%clk 0:00:54]} 25. Qf6 {[%clk 0:00:54]}  Nc5 {[%clk 0:00:51]} 26. Qf3 {[%clk 0:00:37]}  Qf8 {[%clk 0:00:36]} 27. d4 {[%clk 0:00:27]}  Qxf3+ {[%clk 0:00:28]} 28. Kxf3 {[%clk 0:00:28]}  Na4 {[%clk 0:00:24]} 29. Ba1 {[%clk 0:00:22]}  exd4 {[%clk 0:00:21]} 30. exd4 {[%clk 0:00:16]}  Kf7 {[%clk 0:00:20]} 31. Ke4 {[%clk 0:00:16]}  Ke6 {[%clk 0:00:16]} 32. d5+ {[%clk 0:00:15]}  Kf7 {[%clk 0:00:15]} 33. Bd4 {[%clk 0:00:15]}  b6 {[%clk 0:00:11]} 34. Kf4 {[%clk 0:00:12]}  h6 {[%clk 0:00:12]} 35. h4 {[%clk 0:00:12]}  Nc5 {[%clk 0:00:08]} 36. Bxc5 {[%clk 0:00:07]}  bxc5 {[%clk 0:00:09]} 37. a3 {[%clk 0:00:02]}  Ke7 {[%clk 0:00:06]} 38. Ke4 {[%clk 0:00:02]}  Kf6 {[%clk 0:00:06]} 39. Kf4 {[%clk 0:00:03]}  Kf7 {[%clk 0:00:05]} 40. Ke4 {[%clk 0:00:02]}  Kf6 {[%clk 0:00:05]} 41. Kf4 {[%clk 0:00:03]}  g5+ {[%clk 0:00:05]} 42. hxg5+ {[%clk 0:00:03]}  hxg5+ {[%clk 0:00:05]} 43. Ke4 {[%clk 0:00:03]}  Kg6 {[%clk 0:00:05]} 44. Kd3 {[%clk 0:00:03]}  Kf6 {[%clk 0:00:05]} 45. Ke4 {[%clk 0:00:03]}  Kg6 {[%clk 0:00:05]} 46. Ke3 {[%clk 0:00:02]}  Kf6 {[%clk 0:00:06]} 47. a4 {[%clk 0:00:02]}  Kg6 {[%clk 0:00:06]} 48. Ke4 {[%clk 0:00:02]}  Kf6 {[%clk 0:00:06]} 49. a5 {[%clk 0:00:02]}  Kg6 {[%clk 0:00:06]} 50. Ke3 {[%clk 0:00:02]}  Kf6 {[%clk 0:00:06]} 51. Ke4 {[%clk 0:00:03]}  Kg6 {[%clk 0:00:06]} 52. Kd3 {[%clk 0:00:03]}  Kf6 {[%clk 0:00:06]} 53. Ke2 {[%clk 0:00:03]}  Ke5 {[%clk 0:00:06]} 54. Ke3 {[%clk 0:00:03]}  Kf6 {[%clk 0:00:06]} 55. Ke4 {[%clk 0:00:03]} 1/2-1/2


[Site "https://www.chess.com"]

[Event "Titled Tuesday Blitz November 15 Late 2022"]
[White "Swiercz, Dariusz"]
[Black "Suleymanli, Suleyman"]
[WhiteFideId "1126881"]
[BlackFideId "13416375"]
[WhiteElo "2627"]
[BlackElo "2204"]
[Result "1/2-1/2"]
[Round "04"]
[TimeControl "180+1"]
[Date "2022.11.16"]
[WhiteClock "0:00:17"]
[BlackClock "0:01:23"]

1. e4 {[%clk 0:03:00]}  e6 {[%clk 0:02:59]} 2. Nf3 {[%clk 0:03:01]}  d5 {[%clk 0:02:59]} 3. e5 {[%clk 0:03:02]}  c6 {[%clk 0:02:59]} 4. d4 {[%clk 0:03:02]}  c5 {[%clk 0:02:59]} 5. c3 {[%clk 0:03:02]}  Nc6 {[%clk 0:02:59]} 6. Bd3 {[%clk 0:03:01]}  Qb6 {[%clk 0:02:59]} 7. O-O {[%clk 0:03:01]}  cxd4 {[%clk 0:02:59]} 8. cxd4 {[%clk 0:03:02]}  Bd7 {[%clk 0:02:59]} 9. Nc3 {[%clk 0:02:59]}  a6 {[%clk 0:02:58]} 10. Na4 {[%clk 0:02:53]}  Qa7 {[%clk 0:02:58]} 11. Be3 {[%clk 0:02:51]}  Nh6 {[%clk 0:02:56]} 12. Rc1 {[%clk 0:02:46]}  Nf5 {[%clk 0:02:50]} 13. Nc5 {[%clk 0:02:39]}  Nxe3 {[%clk 0:02:46]} 14. fxe3 {[%clk 0:02:39]}  Bxc5 {[%clk 0:02:47]} 15. Rxc5 {[%clk 0:02:40]}  O-O-O {[%clk 0:02:43]} 16. Ng5 {[%clk 0:02:36]}  Be8 {[%clk 0:02:34]} 17. Nxf7 {[%clk 0:02:35]}  Bxf7 {[%clk 0:02:35]} 18. Rxf7 {[%clk 0:02:36]}  Rd7 {[%clk 0:02:35]} 19. Qf3 {[%clk 0:01:34]}  Qb6 {[%clk 0:01:59]} 20. Rxd7 {[%clk 0:00:56]}  Kxd7 {[%clk 0:02:00]} 21. Qf7+ {[%clk 0:00:57]}  Ne7 {[%clk 0:02:00]} 22. Bf5 {[%clk 0:00:56]}  exf5 {[%clk 0:01:36]} 23. Rxd5+ {[%clk 0:00:56]}  Kc8 {[%clk 0:01:36]} 24. Qxe7 {[%clk 0:00:55]}  Qxb2 {[%clk 0:01:34]} 25. Rc5+ {[%clk 0:00:39]}  Kb8 {[%clk 0:01:33]} 26. Qc7+ {[%clk 0:00:39]}  Ka8 {[%clk 0:01:32]} 27. h3 {[%clk 0:00:28]}  Qe2 {[%clk 0:01:31]} 28. Rc3 {[%clk 0:00:23]}  g5 {[%clk 0:01:22]} 29. e6 {[%clk 0:00:20]}  g4 {[%clk 0:01:21]} 30. hxg4 {[%clk 0:00:15]}  Qe1+ {[%clk 0:01:20]} 31. Kh2 {[%clk 0:00:15]}  Qh4+ {[%clk 0:01:20]} 32. Kg1 {[%clk 0:00:16]}  Qe1+ {[%clk 0:01:21]} 33. Kh2 {[%clk 0:00:16]}  Qh4+ {[%clk 0:01:22]} 34. Kg1 {[%clk 0:00:17]}  Qe1+ {[%clk 0:01:23]} 1/2-1/2


[Site "https://www.chess.com"]

[Event "Titled Tuesday Blitz November 15 Late 2022"]
[White "Szyszylo, Rafal"]
[Black "Fernandez Hernandez, Gerardo"]
[WhiteFideId "1109626"]
[BlackFideId "2207400"]
[WhiteElo "1981"]
[BlackElo "2222"]
[Result "0-1"]
[Round "04"]
[TimeControl "180+1"]
[Date "2022.11.16"]
[WhiteClock "0:00:07"]
[BlackClock "0:00:12"]

1. e4 {[%clk 0:03:00]}  e6 {[%clk 0:03:00]} 2. d4 {[%clk 0:03:00]}  d5 {[%clk 0:03:00]} 3. e5 {[%clk 0:03:01]}  c5 {[%clk 0:03:00]} 4. c3 {[%clk 0:03:01]}  Nc6 {[%clk 0:03:00]} 5. Nf3 {[%clk 0:03:02]}  Qb6 {[%clk 0:03:00]} 6. a3 {[%clk 0:03:02]}  f6 {[%clk 0:03:01]} 7. Bd3 {[%clk 0:03:01]}  fxe5 {[%clk 0:02:59]} 8. Nxe5 {[%clk 0:03:01]}  Nf6 {[%clk 0:02:55]} 9. O-O {[%clk 0:03:00]}  Bd6 {[%clk 0:02:52]} 10. b4 {[%clk 0:02:04]}  cxd4 {[%clk 0:02:25]} 11. cxd4 {[%clk 0:01:57]}  Nxe5 {[%clk 0:02:04]} 12. dxe5 {[%clk 0:01:52]}  Bxe5 {[%clk 0:02:04]} 13. Ra2 {[%clk 0:01:49]}  O-O {[%clk 0:01:57]} 14. Be3 {[%clk 0:01:44]}  Qd6 {[%clk 0:01:51]} 15. Bc5 {[%clk 0:01:43]}  Bxh2+ {[%clk 0:01:46]} 16. Kh1 {[%clk 0:01:43]}  Qf4 {[%clk 0:01:44]} 17. Qf3 {[%clk 0:01:30]}  Qxf3 {[%clk 0:01:23]} 18. gxf3 {[%clk 0:01:31]}  Bf4 {[%clk 0:01:21]} 19. Bxf8 {[%clk 0:01:31]}  Kxf8 {[%clk 0:01:22]} 20. Nc3 {[%clk 0:01:10]}  Bd7 {[%clk 0:01:14]} 21. Ne2 {[%clk 0:01:10]}  Bd6 {[%clk 0:01:10]} 22. Rc2 {[%clk 0:01:11]}  Ke7 {[%clk 0:01:03]} 23. Rfc1 {[%clk 0:01:11]}  a6 {[%clk 0:01:00]} 24. Nd4 {[%clk 0:01:05]}  Rf8 {[%clk 0:00:47]} 25. Re2 {[%clk 0:00:52]}  g6 {[%clk 0:00:46]} 26. Nb3 {[%clk 0:00:49]}  Nh5 {[%clk 0:00:40]} 27. Nc5 {[%clk 0:00:45]}  Nf4 {[%clk 0:00:37]} 28. Rd2 {[%clk 0:00:42]}  Nxd3 {[%clk 0:00:36]} 29. Rxd3 {[%clk 0:00:43]}  Bc8 {[%clk 0:00:34]} 30. Kg2 {[%clk 0:00:41]}  b6 {[%clk 0:00:23]} 31. Nb3 {[%clk 0:00:39]}  Bb7 {[%clk 0:00:23]} 32. Nd4 {[%clk 0:00:35]}  e5 {[%clk 0:00:18]} 33. Nc6+ {[%clk 0:00:33]}  Kd7 {[%clk 0:00:19]} 34. b5 {[%clk 0:00:22]}  axb5 {[%clk 0:00:19]} 35. Nb4 {[%clk 0:00:23]}  e4 {[%clk 0:00:15]} 36. fxe4 {[%clk 0:00:20]}  dxe4 {[%clk 0:00:16]} 37. Re3 {[%clk 0:00:12]}  Bc5 {[%clk 0:00:11]} 38. Rd1+ {[%clk 0:00:12]}  Kc8 {[%clk 0:00:11]} 39. Nd5 {[%clk 0:00:09]}  Bxd5 {[%clk 0:00:07]} 40. Rxd5 {[%clk 0:00:08]}  Bxe3 {[%clk 0:00:08]} 41. fxe3 {[%clk 0:00:09]}  Rf5 {[%clk 0:00:07]} 42. Rd4 {[%clk 0:00:07]}  Re5 {[%clk 0:00:05]} 43. Kg3 {[%clk 0:00:07]}  Kc7 {[%clk 0:00:05]} 44. Kf4 {[%clk 0:00:08]}  Re7 {[%clk 0:00:04]} 45. Rd5 {[%clk 0:00:07]}  Kc6 {[%clk 0:00:04]} 46. Rd8 {[%clk 0:00:07]}  h5 {[%clk 0:00:04]} 47. Rg8 {[%clk 0:00:05]}  Re6 {[%clk 0:00:04]} 48. Rc8+ {[%clk 0:00:04]}  Kb7 {[%clk 0:00:04]} 49. Rd8 {[%clk 0:00:03]}  Kc7 {[%clk 0:00:04]} 50. Rg8 {[%clk 0:00:03]}  Kd6 {[%clk 0:00:03]} 51. Rb8 {[%clk 0:00:03]}  Kc5 {[%clk 0:00:03]} 52. Rc8+ {[%clk 0:00:03]}  Rc6 {[%clk 0:00:02]} 53. Re8 {[%clk 0:00:02]}  Kc4 {[%clk 0:00:03]} 54. Rxe4+ {[%clk 0:00:03]}  Kb3 {[%clk 0:00:03]} 55. Re5 {[%clk 0:00:03]}  Kxa3 {[%clk 0:00:03]} 56. Rxb5 {[%clk 0:00:04]}  Ka4 {[%clk 0:00:03]} 57. Rb1 {[%clk 0:00:03]}  b5 {[%clk 0:00:04]} 58. e4 {[%clk 0:00:03]}  b4 {[%clk 0:00:04]} 59. e5 {[%clk 0:00:04]}  b3 {[%clk 0:00:04]} 60. Ke4 {[%clk 0:00:04]}  Ka3 {[%clk 0:00:04]} 61. Kd5 {[%clk 0:00:04]}  Ra6 {[%clk 0:00:04]} 62. e6 {[%clk 0:00:05]}  Ka2 {[%clk 0:00:04]} 63. e7 {[%clk 0:00:04]}  Ra8 {[%clk 0:00:03]} 64. Re1 {[%clk 0:00:03]}  b2 {[%clk 0:00:04]} 65. e8=Q {[%clk 0:00:02]}  Rxe8 {[%clk 0:00:03]} 66. Rxe8 {[%clk 0:00:01]}  b1=Q {[%clk 0:00:03]} 67. Ra8+ {[%clk 0:00:02]}  Kb2 {[%clk 0:00:04]} 68. Rb8+ {[%clk 0:00:03]}  Kc1 {[%clk 0:00:04]} 69. Rxb1+ {[%clk 0:00:04]}  Kxb1 {[%clk 0:00:04]} 70. Ke4 {[%clk 0:00:04]}  Kc2 {[%clk 0:00:05]} 71. Kf4 {[%clk 0:00:04]}  Kc3 {[%clk 0:00:05]} 72. Kg5 {[%clk 0:00:05]}  Kd4 {[%clk 0:00:06]} 73. Kxg6 {[%clk 0:00:05]}  h4 {[%clk 0:00:06]} 74. Kh5 {[%clk 0:00:06]}  h3 {[%clk 0:00:07]} 75. Kg4 {[%clk 0:00:06]}  h2 {[%clk 0:00:08]} 76. Kg3 {[%clk 0:00:06]}  h1=Q {[%clk 0:00:09]} 77. Kf4 {[%clk 0:00:07]}  Qe4+ {[%clk 0:00:10]} 78. Kg3 {[%clk 0:00:07]}  Qf5 {[%clk 0:00:10]} 79. Kh4 {[%clk 0:00:06]}  Qg6 {[%clk 0:00:10]} 80. Kh3 {[%clk 0:00:06]}  Ke4 {[%clk 0:00:11]} 81. Kh2 {[%clk 0:00:07]}  Kf3 {[%clk 0:00:12]} 82. Kh3 {[%clk 0:00:07]}  Qg3# {[%clk 0:00:12]} 0-1


[Site "https://www.chess.com"]

[Event "Titled Tuesday Blitz November 15 Late 2022"]
[White "Tan, Ralph"]
[Black "Andreassen, Lars"]
[WhiteFideId "30966590"]
[BlackFideId "1504878"]
[WhiteElo "2059"]
[BlackElo "2119"]
[Result "0-1"]
[Round "04"]
[TimeControl "180+1"]
[Date "2022.11.16"]
[WhiteClock "0:00:11"]
[BlackClock "0:00:09"]

1. Nf3 {[%clk 0:03:00]}  d5 {[%clk 0:02:58]} 2. g3 {[%clk 0:03:00]}  Nf6 {[%clk 0:02:58]} 3. Bg2 {[%clk 0:03:01]}  Bf5 {[%clk 0:02:57]} 4. O-O {[%clk 0:03:00]}  e6 {[%clk 0:02:57]} 5. Nh4 {[%clk 0:02:59]}  Be4 {[%clk 0:02:56]} 6. f3 {[%clk 0:02:59]}  Bg6 {[%clk 0:02:56]} 7. d4 {[%clk 0:02:58]}  c6 {[%clk 0:02:56]} 8. Nxg6 {[%clk 0:02:57]}  hxg6 {[%clk 0:02:55]} 9. c3 {[%clk 0:02:57]}  Nbd7 {[%clk 0:02:54]} 10. Be3 {[%clk 0:02:57]}  Qb6 {[%clk 0:02:50]} 11. Qd2 {[%clk 0:02:48]}  Be7 {[%clk 0:02:48]} 12. Bf2 {[%clk 0:02:45]}  Rc8 {[%clk 0:02:43]} 13. b4 {[%clk 0:02:36]}  a5 {[%clk 0:02:42]} 14. a3 {[%clk 0:02:35]}  axb4 {[%clk 0:02:40]} 15. axb4 {[%clk 0:02:36]}  O-O {[%clk 0:02:39]} 16. Na3 {[%clk 0:02:34]}  Ra8 {[%clk 0:02:39]} 17. Nc2 {[%clk 0:02:34]}  Qb5 {[%clk 0:02:34]} 18. h3 {[%clk 0:01:50]}  Nb6 {[%clk 0:02:31]} 19. Na3 {[%clk 0:01:29]}  Qa4 {[%clk 0:02:25]} 20. Nc2 {[%clk 0:01:23]}  Qb5 {[%clk 0:02:20]} 21. Ne3 {[%clk 0:01:18]}  Nc4 {[%clk 0:02:15]} 22. Nxc4 {[%clk 0:01:16]}  Qxc4 {[%clk 0:02:13]} 23. e4 {[%clk 0:01:16]}  b6 {[%clk 0:02:00]} 24. Rfb1 {[%clk 0:01:15]}  c5 {[%clk 0:01:46]} 25. Bf1 {[%clk 0:01:08]}  Rxa1 {[%clk 0:01:42]} 26. Rxa1 {[%clk 0:01:02]}  Qb3 {[%clk 0:01:42]} 27. e5 {[%clk 0:00:57]}  Nd7 {[%clk 0:01:25]} 28. Ra7 {[%clk 0:00:51]}  Rd8 {[%clk 0:01:20]} 29. Bb5 {[%clk 0:00:47]}  cxb4 {[%clk 0:01:01]} 30. cxb4 {[%clk 0:00:36]}  Bxb4 {[%clk 0:00:59]} 31. Qe2 {[%clk 0:00:36]}  Nf8 {[%clk 0:00:38]} 32. h4 {[%clk 0:00:36]}  Bc3 {[%clk 0:00:32]} 33. Qd3 {[%clk 0:00:32]}  Qb2 {[%clk 0:00:28]} 34. Rc7 {[%clk 0:00:28]}  Qa1+ {[%clk 0:00:20]} 35. Kg2 {[%clk 0:00:28]}  Ba5 {[%clk 0:00:19]} 36. h5 {[%clk 0:00:27]}  gxh5 {[%clk 0:00:18]} 37. Qe3 {[%clk 0:00:25]}  Ng6 {[%clk 0:00:18]} 38. Bd3 {[%clk 0:00:22]}  Qa2 {[%clk 0:00:15]} 39. Bxg6 {[%clk 0:00:21]}  fxg6 {[%clk 0:00:15]} 40. Qg5 {[%clk 0:00:22]}  Be1 {[%clk 0:00:10]} 41. Qxd8+ {[%clk 0:00:21]}  Kh7 {[%clk 0:00:10]} 42. Qf8 {[%clk 0:00:10]}  Qxf2+ {[%clk 0:00:09]} 43. Kh3 {[%clk 0:00:11]}  Qxg3# {[%clk 0:00:09]} 0-1


[Site "https://www.chess.com"]

[Event "Titled Tuesday Blitz November 15 Late 2022"]
[White "Tanenbaum, Zachary"]
[Black "Petrovic, Aleksa"]
[WhiteFideId "2060850"]
[BlackFideId "967629"]
[WhiteElo "2175"]
[BlackElo "2224"]
[Result "0-1"]
[Round "04"]
[TimeControl "180+1"]
[Date "2022.11.16"]
[WhiteClock "0:00:04"]
[BlackClock "0:00:57"]

1. e4 {[%clk 0:03:00]}  e6 {[%clk 0:02:59]} 2. d4 {[%clk 0:02:59]}  d5 {[%clk 0:02:59]} 3. Nc3 {[%clk 0:03:00]}  h6 {[%clk 0:02:59]} 4. Nf3 {[%clk 0:02:59]}  Nf6 {[%clk 0:02:57]} 5. e5 {[%clk 0:02:58]}  Nfd7 {[%clk 0:02:56]} 6. Bd3 {[%clk 0:02:57]}  c5 {[%clk 0:02:56]} 7. dxc5 {[%clk 0:02:55]}  Nc6 {[%clk 0:02:55]} 8. Bf4 {[%clk 0:02:53]}  g5 {[%clk 0:02:51]} 9. Bg3 {[%clk 0:02:48]}  g4 {[%clk 0:02:52]} 10. Nd2 {[%clk 0:02:39]}  Ndxe5 {[%clk 0:02:47]} 11. Bb5 {[%clk 0:02:37]}  Bd7 {[%clk 0:02:19]} 12. Qe2 {[%clk 0:02:31]}  Bg7 {[%clk 0:02:02]} 13. Nxd5 {[%clk 0:02:29]}  Nd4 {[%clk 0:01:55]} 14. Bxd7+ {[%clk 0:02:23]}  Qxd7 {[%clk 0:01:52]} 15. Bxe5 {[%clk 0:01:35]}  Nxe2 {[%clk 0:01:44]} 16. Bxg7 {[%clk 0:01:34]}  Qxd5 {[%clk 0:01:40]} 17. Bxh8 {[%clk 0:01:34]}  O-O-O {[%clk 0:01:30]} 18. Rd1 {[%clk 0:00:29]}  Nf4 {[%clk 0:01:28]} 19. f3 {[%clk 0:00:29]}  gxf3 {[%clk 0:01:22]} 20. gxf3 {[%clk 0:00:25]}  Rxh8 {[%clk 0:01:22]} 21. Ne4 {[%clk 0:00:21]}  Qxa2 {[%clk 0:01:17]} 22. Nd6+ {[%clk 0:00:11]}  Kb8 {[%clk 0:01:16]} 23. Nxf7 {[%clk 0:00:11]}  Rc8 {[%clk 0:01:05]} 24. Ne5 {[%clk 0:00:09]}  Qxb2 {[%clk 0:01:01]} 25. Nd7+ {[%clk 0:00:08]}  Kc7 {[%clk 0:01:01]} 26. Kf2 {[%clk 0:00:06]}  Qxc2+ {[%clk 0:00:59]} 27. Kg3 {[%clk 0:00:07]}  Qf5 {[%clk 0:00:58]} 28. Rhe1 {[%clk 0:00:04]}  Rg8+ {[%clk 0:00:57]} 0-1


[Site "https://www.chess.com"]

[Event "Titled Tuesday Blitz November 15 Late 2022"]
[White "Torres Dominguez, David"]
[Black "Grapsa, Georgia"]
[WhiteFideId "2220857"]
[BlackFideId "4206436"]
[WhiteElo "2037"]
[BlackElo "1877"]
[Result "1-0"]
[Round "04"]
[TimeControl "180+1"]
[Date "2022.11.16"]
[WhiteClock "0:00:42"]
[BlackClock "0:00:39"]

1. e4 {[%clk 0:03:00]}  d5 {[%clk 0:02:59]} 2. d3 {[%clk 0:02:56]}  e5 {[%clk 0:02:58]} 3. Nf3 {[%clk 0:02:47]}  Nc6 {[%clk 0:02:56]} 4. exd5 {[%clk 0:02:47]}  Qxd5 {[%clk 0:02:55]} 5. Be2 {[%clk 0:02:47]}  Nf6 {[%clk 0:02:54]} 6. O-O {[%clk 0:02:48]}  Be6 {[%clk 0:02:49]} 7. Bg5 {[%clk 0:02:42]}  O-O-O {[%clk 0:02:46]} 8. c4 {[%clk 0:02:41]}  Qd7 {[%clk 0:02:42]} 9. Kh1 {[%clk 0:02:35]}  Bf5 {[%clk 0:02:40]} 10. Qa4 {[%clk 0:02:30]}  Bxd3 {[%clk 0:02:33]} 11. Rd1 {[%clk 0:02:08]}  e4 {[%clk 0:02:32]} 12. Nc3 {[%clk 0:01:54]}  Qf5 {[%clk 0:02:18]} 13. Bxf6 {[%clk 0:01:48]}  Qxf6 {[%clk 0:02:16]} 14. Nd5 {[%clk 0:01:40]}  Qg6 {[%clk 0:01:28]} 15. Bxd3 {[%clk 0:01:35]}  exd3 {[%clk 0:01:29]} 16. b4 {[%clk 0:01:30]}  f6 {[%clk 0:01:03]} 17. b5 {[%clk 0:01:27]}  Nb8 {[%clk 0:00:53]} 18. Qxa7 {[%clk 0:01:03]}  Bd6 {[%clk 0:00:45]} 19. c5 {[%clk 0:00:43]}  Bf8 {[%clk 0:00:40]} 20. c6 {[%clk 0:00:43]}  bxc6 {[%clk 0:00:40]} 21. bxc6 {[%clk 0:00:42]}  Nxc6 {[%clk 0:00:39]} 22. Qxc7# {[%clk 0:00:42]} 1-0


[Site "https://www.chess.com"]